fUST/lending_fUST_20241217
["ID","MTS","AMOUNT","RATE_DAILY","PERIOD"]
[345607799,1734378676209,-360.26272381,0.00028767,7]
[345607800,1734378676217,-9729.37,0.00028767,7]
[345607801,1734378676224,-1060.98,0.00028767,7]
[345607802,1734378676232,-500.0,0.00028767,7]
[345607803,1734378676240,-14925.36,0.00028767,7]
[345607804,1734378676248,-500.0,0.00028767,7]
[345607805,1734378676256,-500.0,0.00028767,7]
[345607806,1734378676263,-500.0,0.00028767,7]
[345607807,1734378676269,-282.62325441,0.00028767,7]
[345607808,1734378676278,-500.0,0.00028767,7]
[345607809,1734378676286,-500.0,0.00028767,7]
[345607810,1734378676295,-2344.08,0.00028767,7]
[345607811,1734378676304,-500.0,0.00028767,7]
[345607812,1734378676311,-1661.08,0.00028767,7]
[345607813,1734378676320,-500.0,0.00028767,7]
[345607814,1734378676329,-500.0,0.00028767,7]
[345607815,1734378676341,-595.17,0.00028767,7]
[345607816,1734378676350,-500.0,0.00028767,7]
[345607817,1734378676361,-3399.59,0.00028767,5]
[345607818,1734378676370,-527.23,0.00028767,7]
[345607819,1734378676381,-566.2,0.00028767,7]
[345607820,1734378676391,-3537.77573835,0.00028767,7]
[345607821,1734378676616,-1098.52426165,0.00028767,7]
[345607822,1734378676627,-500.0,0.00028767,7]
[345607823,1734378676638,-45939.37,0.00028767,7]
[345607824,1734378676648,-500.0,0.00028767,7]
[345607825,1734378676658,-452.35247749,0.00028767,7]
[345607826,1734378676668,-500.0,0.00028767,7]
[345607827,1734378676677,-745.37,0.00028767,7]
[345607828,1734378676687,-2498.22,0.00028767,7]
[345607829,1734378676698,-500.0,0.00028767,7]
[345607830,1734378676707,-624.08118293,0.00028767,2]
[345607831,1734378676864,-357.6220671,0.00028795,30]
[345607832,1734378676874,-563.68,0.000288,31]
[345607833,1734378676884,-563.68,0.000288,31]
[345607834,1734378676894,-563.68,0.000288,31]
[345607835,1734378676904,-563.68,0.000288,31]
[345607836,1734378676914,-563.68,0.000288,31]
[345607837,1734378676927,-563.68,0.000288,31]
[345607838,1734378676937,-563.68,0.000288,31]
[345607839,1734378676947,-563.68,0.000288,31]
[345607840,1734378676957,-563.68,0.000288,31]
[345607841,1734378676968,-563.68,0.000288,31]
[345607842,1734378676977,-563.68,0.000288,31]
[345607843,1734378676987,-563.68,0.000288,31]
[345607844,1734378676996,-563.68,0.000288,31]
[345607845,1734378677007,-563.68,0.000288,31]
[345607846,1734378677017,-563.68,0.000288,31]
[345607847,1734378677027,-563.68,0.000288,31]
[345607848,1734378677036,-563.68,0.000288,31]
[345607849,1734378677046,-563.68,0.000288,31]
[345607850,1734378677055,-563.68,0.000288,31]
[345607851,1734378677065,-563.68,0.000288,31]
[345607852,1734378677075,-563.68,0.000288,31]
[345607853,1734378677086,-563.68,0.000288,31]
[345607854,1734378677094,-563.68,0.000288,31]
[345607855,1734378677103,-563.68,0.000288,31]
[345607856,1734378677112,-2074.77603438,0.00028842,2]
[345607857,1734378677122,-212.32053271,0.00028849,2]
[345607858,1734378677132,-600.0,0.000289,2]
[345607859,1734378677143,-151.0,0.00028918,7]
[345607860,1734378677154,-502.13809932,0.00028922,5]
[345607861,1734378677163,-507.1801235,0.00028922,5]
[345607862,1734378677173,-587.0,0.00028925,2]
[345607863,1734378677183,-309.3649371,0.00028932,30]
[345607864,1734378677193,-882.24887576,0.00028942,2]
[345607865,1734378677203,-10445.75867062,0.00028956,2]
[345607866,1734378677213,-212.32053271,0.00028986,2]
[345607867,1734378677223,-292.0,0.00028997,2]
[345607868,1734378677232,-300.0,0.00029,2]
[345607869,1734378677242,-253.89228,0.00029,120]
[345607870,1734378677252,-303.28506248,0.00029,2]
[345607871,1734378677262,-250.0,0.00029021,5]
[345607872,1734378677271,-172.35944,0.00029035,2]
[345607873,1734378677281,-500.0,0.00029041,7]
[345607874,1734378677290,-255.027271,0.00029041,7]
[345607875,1734378677300,-605.19,0.00029041,7]
[345607876,1734378677310,-500.0,0.00029041,7]
[345607877,1734378677321,-500.0,0.00029041,7]
[345607878,1734378677331,-500.0,0.00029041,7]
[345607879,1734378677343,-500.0,0.00029041,7]
[345607880,1734378677353,-500.0,0.00029041,7]
[345607881,1734378677363,-500.0,0.00029041,7]
[345607882,1734378677373,-500.0,0.00029041,7]
[345607883,1734378677384,-500.0,0.00029041,7]
[345607884,1734378677394,-500.0,0.00029041,7]
[345607885,1734378677404,-500.0,0.00029041,7]
[345607886,1734378677414,-500.0,0.00029041,7]
[345607887,1734378677423,-446.18906529,0.00029041,7]
[345607888,1734378677433,-696.51,0.00029041,7]
[345607889,1734378677443,-551.18305561,0.00029041,7]
[345607890,1734378677453,-500.0,0.00029041,7]
[345607891,1734378677464,-500.0,0.00029041,7]
[345607892,1734378677473,-500.0,0.00029041,7]
[345607893,1734378677483,-500.0,0.00029041,7]
[345607894,1734378677492,-512.16040286,0.00029041,7]
[345607895,1734378677502,-920.62,0.00029041,7]
[345607896,1734378677512,-500.0,0.00029041,7]
[345607897,1734378677522,-500.0,0.00029041,7]
[345607898,1734378677532,-500.0,0.00029041,7]
[345607899,1734378677543,-2138.97,0.00029041,7]
[345607900,1734378677554,-500.0,0.00029041,7]
[345607901,1734378677564,-500.0,0.00029041,7]
[345607902,1734378677574,-691.22,0.00029041,7]
[345607903,1734378677585,-642.02,0.00029041,7]
[345607904,1734378677595,-500.0,0.00029041,7]
[345607905,1734378677605,-500.0,0.00029041,7]
[345607906,1734378677615,-500.0,0.00029041,7]
[345607907,1734378677625,-438.42305327,0.00029041,7]
[345607908,1734378677635,-500.0,0.00029041,7]
[345607909,1734378677644,-500.0,0.00029041,7]
[345607910,1734378677654,-500.0,0.00029041,7]
[345607911,1734378677664,-500.0,0.00029041,7]
[345607912,1734378677674,-500.0,0.00029041,7]
[345607913,1734378677684,-500.0,0.00029041,7]
[345607914,1734378677694,-500.0,0.00029041,7]
[345607915,1734378677704,-500.0,0.00029041,7]
[345607916,1734378677714,-500.0,0.00029041,7]
[345607917,1734378677723,-500.0,0.00029041,7]
[345607918,1734378677733,-500.0,0.00029041,7]
[345607919,1734378677743,-500.0,0.00029041,7]
[345607920,1734378677752,-500.0,0.00029041,7]
[345607921,1734378677762,-1284.31,0.00029041,7]
[345607922,1734378677772,-500.0,0.00029041,7]
[345607923,1734378677782,-500.0,0.00029041,7]
[345607924,1734378677792,-398.28201029,0.00029041,7]
[345607925,1734378677802,-500.0,0.00029041,7]
[345607926,1734378677812,-1055.83,0.00029041,7]
[345607927,1734378677822,-500.0,0.00029041,7]
[345607928,1734378677831,-500.0,0.00029041,7]
[345607929,1734378677843,-607.21,0.00029041,7]
[345607930,1734378677853,-500.0,0.00029041,7]
[345607931,1734378677862,-500.0,0.00029041,7]
[345607932,1734378677872,-1776.96,0.00029041,7]
[345607933,1734378677882,-767.75,0.00029041,7]
[345607934,1734378677892,-500.0,0.00029041,7]
[345607935,1734378677902,-624.13126261,0.00029041,7]
[345607936,1734378677911,-168.0,0.00029041,7]
[345607937,1734378677922,-500.0,0.00029041,7]
[345607938,1734378677936,-1488.28,0.00029041,7]
[345607939,1734378677946,-500.0,0.00029041,7]
[345607940,1734378677956,-500.0,0.00029041,7]
[345607941,1734378677965,-777.35,0.00029041,7]
[345607942,1734378677977,-500.0,0.00029041,7]
[345607943,1734378677986,-2178.24,0.00029041,7]
[345607944,1734378677995,-1855.71,0.00029041,2]
[345607945,1734378678006,-500.0,0.00029041,7]
[345607946,1734378678016,-500.0,0.00029041,7]
[345607947,1734378678026,-500.0,0.00029041,7]
[345607948,1734378678036,-560.05,0.00029041,7]
[345607949,1734378678046,-500.0,0.00029041,2]
[345607950,1734378678056,-500.0,0.00029041,7]
[345607951,1734378678067,-364.45479322,0.00029041,7]
[345607952,1734378678077,-578.89,0.00029041,7]
[345607953,1734378678090,-500.0,0.00029041,7]
[345607954,1734378678106,-500.0,0.00029041,7]
[345607955,1734378678116,-500.0,0.00029041,7]
[345607956,1734378678125,-570.95,0.00029041,7]
[345607957,1734378678136,-505.48390917,0.00029041,7]
[345607958,1734378678148,-637.52695978,0.00029041,7]
[345607959,1734378678159,-504.25022879,0.00029041,7]
[345607960,1734378678170,-1146.06,0.00029041,7]
[345607961,1734378678181,-811.7,0.00029041,7]
[345607962,1734378678191,-500.0,0.00029041,7]
[345607963,1734378678201,-500.0,0.00029041,7]
[345607964,1734378678212,-500.0,0.00029041,7]
[345607965,1734378678222,-500.0,0.00029041,7]
[345607966,1734378678233,-500.0,0.00029041,7]
[345607967,1734378678243,-2592.99,0.00029041,7]
[345607968,1734378678253,-500.0,0.00029041,7]
[345607969,1734378678264,-506.54414155,0.00029041,7]
[345607970,1734378678274,-500.0,0.00029041,7]
[345607971,1734378678285,-500.0,0.00029041,7]
[345607972,1734378678295,-500.0,0.00029041,7]
[345607973,1734378678305,-500.0,0.00029041,7]
[345607974,1734378678315,-587.65901353,0.00029041,7]
[345607975,1734378678325,-500.0,0.00029041,7]
[345607976,1734378678337,-2180.29,0.00029041,7]
[345607977,1734378678347,-534.76,0.00029041,7]
[345607978,1734378678357,-516.79,0.00029041,7]
[345607979,1734378678367,-500.0,0.00029041,7]
[345607980,1734378678379,-1000.0,0.00029041,2]
[345607981,1734378678389,-2573.99,0.00029041,7]
[345607982,1734378678400,-500.0,0.00029041,7]
[345607983,1734378678409,-3174.4,0.00029041,7]
[345607984,1734378678420,-500.0,0.00029041,7]
[345607985,1734378678431,-500.0,0.00029041,2]
[345607986,1734378678441,-576.51,0.00029041,7]
[345607987,1734378678451,-500.0,0.00029041,7]
[345607988,1734378678461,-2345.15,0.00029041,7]
[345607989,1734378678471,-578.76,0.00029041,7]
[345607990,1734378678482,-877.05,0.00029041,7]
[345607991,1734378678492,-2205.48,0.00029041,7]
[345607992,1734378678502,-500.0,0.00029041,7]
[345607993,1734378678512,-1402.79,0.00029041,7]
[345607994,1734378678523,-1330.53,0.00029041,7]
[345607995,1734378678533,-543.93,0.00029041,7]
[345607996,1734378678543,-500.0,0.00029041,2]
[345607997,1734378678553,-500.0,0.00029041,7]
[345607998,1734378678564,-151.0,0.00029041,7]
[345607999,1734378678574,-500.0,0.00029041,7]
[345608000,1734378678584,-476.05391448,0.00029041,7]
[345608001,1734378678599,-5085.84,0.00029041,7]
[345608002,1734378678609,-509.12446409,0.00029041,7]
[345608003,1734378678619,-500.0,0.00029041,7]
[345608004,1734378678630,-500.0,0.00029041,7]
[345608005,1734378678639,-777.74,0.00029041,7]
[345608006,1734378678649,-502.56991921,0.00029041,7]
[345608007,1734378678658,-773.31,0.00029041,7]
[345608008,1734378678668,-500.0,0.00029041,7]
[345608009,1734378678678,-500.0,0.00029041,7]
[345608010,1734378678688,-500.0,0.00029041,7]
[345608011,1734378678698,-500.0,0.00029041,7]
[345608012,1734378678708,-9195.94,0.00029041,7]
[345608013,1734378678718,-500.0,0.00029041,7]
[345608014,1734378678727,-500.0,0.00029041,7]
[345608015,1734378678736,-500.0,0.00029041,7]
[345608016,1734378678747,-500.0,0.00029041,7]
[345608017,1734378678757,-500.0,0.00029041,7]
[345608018,1734378678767,-500.0,0.00029041,7]
[345608019,1734378678777,-500.0,0.00029041,7]
[345608020,1734378678787,-7158.8,0.00029041,7]
[345608021,1734378678797,-500.0,0.00029041,7]
[345608022,1734378678807,-500.0,0.00029041,7]
[345608023,1734378678817,-500.0,0.00029041,7]
[345608024,1734378678832,-500.0,0.00029041,7]
[345608025,1734378678850,-500.0,0.00029041,7]
[345608026,1734378678860,-500.0,0.00029041,7]
[345608027,1734378678871,-500.0,0.00029041,7]
[345608028,1734378678881,-500.0,0.00029041,7]
[345608029,1734378678891,-500.0,0.00029041,7]
[345608030,1734378678901,-151.0,0.00029041,7]
[345608031,1734378678924,-500.0,0.00029041,7]
[345608032,1734378678952,-1793.9,0.00029041,7]
[345608033,1734378678964,-471.15010138,0.00029041,7]
[345608034,1734378678974,-423.064064,0.00029041,7]
[345608035,1734378678984,-423.064064,0.00029041,7]
[345608036,1734378678994,-500.0,0.00029041,7]
[345608037,1734378679005,-616.92,0.00029041,7]
[345608038,1734378679015,-802.84,0.00029041,7]
[345608039,1734378679024,-682.214046,0.00029041,7]
[345608040,1734378679035,-682.214046,0.00029041,7]
[345608041,1734378679045,-1507.94,0.00029041,7]
[345608042,1734378679054,-1682.8,0.00029041,7]
[345608043,1734378679064,-257.50734,0.00029041,7]
[345608044,1734378679075,-2229.660482,0.00029041,7]
[345608045,1734378679088,-500.0,0.00029041,7]
[345608046,1734378679098,-257.50734,0.00029041,7]
[345608047,1734378679110,-2229.660482,0.00029041,7]
[345608048,1734378679121,-151.0,0.00029041,7]
[345608049,1734378679133,-9729.37,0.00029041,7]
[345608050,1734378679144,-1060.98,0.00029041,7]
[345608051,1734378679155,-158.313461,0.00029041,7]
[345608052,1734378679166,-198.03512168,0.00029041,7]
[345608053,1734378679176,-14925.36,0.00029041,7]
[345608054,1734378679186,-158.313461,0.00029041,7]
[345608055,1734378679197,-500.0,0.00029041,7]
[345608056,1734378679207,-2007.041942,0.00029041,7]
[345608057,1734378679218,-2007.041942,0.00029041,7]
[345608058,1734378679227,-151.0,0.00029041,7]
[345608059,1734378679238,-151.0,0.00029041,7]
[345608060,1734378679248,-500.0,0.00029041,7]
[345608061,1734378679258,-500.0,0.00029041,7]
[345608062,1734378679268,-151.0,0.00029041,7]
[345608063,1734378679278,-151.0,0.00029041,7]
[345608064,1734378679288,-500.0,0.00029041,7]
[345608065,1734378679299,-500.0,0.00029041,7]
[345608066,1734378679309,-2344.08,0.00029041,7]
[345608067,1734378679319,-500.0,0.00029041,7]
[345608068,1734378679329,-1661.08,0.00029041,7]
[345608069,1734378679343,-500.0,0.00029041,7]
[345608070,1734378679354,-500.0,0.00029041,7]
[345608071,1734378679364,-595.17,0.00029041,7]
[345608072,1734378679375,-500.0,0.00029041,7]
[345608073,1734378679385,-3399.59,0.00029041,5]
[345608074,1734378679395,-527.23,0.00029041,7]
[345608075,1734378679406,-566.2,0.00029041,7]
[345608076,1734378679415,-4636.3,0.00029041,7]
[345608077,1734378679425,-500.0,0.00029041,7]
[345608078,1734378679435,-45939.37,0.00029041,7]
[345608079,1734378679445,-500.0,0.00029041,7]
[345608080,1734378679456,-500.0,0.00029041,7]
[345608081,1734378679467,-2498.22,0.00029041,7]
[345608082,1734378679479,-745.37,0.00029041,7]
[345608083,1734378679489,-500.0,0.00029041,7]
[345608084,1734378679499,-563.68,0.000291,31]
[345608085,1734378679508,-563.68,0.000291,31]
[345608086,1734378679518,-563.68,0.000291,31]
[345608087,1734378679529,-563.68,0.000291,31]
[345608088,1734378679538,-563.68,0.000291,31]
[345608089,1734378679548,-563.68,0.000291,31]
[345608090,1734378679558,-563.68,0.000291,31]
[345608091,1734378679568,-563.68,0.000291,31]
[345608092,1734378679578,-563.68,0.000291,31]
[345608093,1734378679589,-563.68,0.000291,31]
[345608094,1734378679599,-563.68,0.000291,31]
[345608095,1734378679609,-563.68,0.000291,31]
[345608096,1734378679619,-563.68,0.000291,31]
[345608097,1734378679629,-563.68,0.000291,31]
[345608098,1734378679638,-563.68,0.000291,31]
[345608099,1734378679649,-563.68,0.000291,31]
[345608100,1734378679658,-563.68,0.000291,31]
[345608101,1734378679668,-563.68,0.000291,31]
[345608102,1734378679677,-563.68,0.000291,31]
[345608103,1734378679687,-563.68,0.000291,31]
[345608104,1734378679829,-563.68,0.000291,31]
[345608105,1734378679842,-563.68,0.000291,31]
[345608106,1734378679852,-563.68,0.000291,31]
[345608107,1734378679861,-563.68,0.000291,31]
[345608108,1734378679871,-187.365247,0.000291,7]
[345608109,1734378679881,-187.365247,0.000291,7]
[345608110,1734378679891,-364.219274,0.000291,7]
[345608111,1734378679901,-364.219274,0.000291,7]
[345608112,1734378679911,-212.32053271,0.00029123,2]
[345608113,1734378679921,-151.0,0.00029198,7]
[345608114,1734378679936,-600.0,0.00029198,2]
[345608115,1734378679947,-153.0,0.00029205,30]
[345608116,1734378679957,-153.0,0.00029205,30]
[345608117,1734378679967,-153.0,0.00029205,30]
[345608118,1734378679976,-282.57,0.0002926,120]
[345608119,1734378679987,-212.32053271,0.0002926,2]
[345608120,1734378679996,-150.5,0.0002927,120]
[345608121,1734378680007,-150.5,0.0002928,120]
[345608122,1734378680017,-10445.75867062,0.00029281,2]
[345608123,1734378680027,-303.28506248,0.0002929,2]
[345608124,1734378680038,-882.24887576,0.0002929,2]
[345608125,1734378680048,-500.0,0.00029315,7]
[345608126,1734378680058,-605.19,0.00029315,7]
[345608127,1734378680068,-500.0,0.00029315,7]
[345608128,1734378680079,-500.0,0.00029315,7]
[345608129,1734378680092,-500.0,0.00029315,7]
[345608130,1734378680102,-500.0,0.00029315,7]
[345608131,1734378680112,-500.0,0.00029315,7]
[345608132,1734378680121,-500.0,0.00029315,7]
[345608133,1734378680131,-500.0,0.00029315,7]
[345608134,1734378680141,-500.0,0.00029315,7]
[345608135,1734378680151,-500.0,0.00029315,7]
[345608136,1734378680161,-500.0,0.00029315,7]
[345608137,1734378680171,-696.51,0.00029315,7]
[345608138,1734378680181,-500.0,0.00029315,7]
[345608139,1734378680191,-500.0,0.00029315,7]
[345608140,1734378680201,-500.0,0.00029315,7]
[345608141,1734378680211,-500.0,0.00029315,7]
[345608142,1734378680221,-920.62,0.00029315,7]
[345608143,1734378680231,-500.0,0.00029315,7]
[345608144,1734378680241,-500.0,0.00029315,7]
[345608145,1734378680251,-500.0,0.00029315,7]
[345608146,1734378680262,-2138.97,0.00029315,7]
[345608147,1734378680272,-500.0,0.00029315,7]
[345608148,1734378680283,-500.0,0.00029315,7]
[345608149,1734378680293,-691.22,0.00029315,7]
[345608150,1734378680304,-642.02,0.00029315,7]
[345608151,1734378680313,-500.0,0.00029315,7]
[345608152,1734378680323,-500.0,0.00029315,7]
[345608153,1734378680333,-500.0,0.00029315,7]
[345608154,1734378680346,-500.0,0.00029315,7]
[345608155,1734378680356,-500.0,0.00029315,7]
[345608156,1734378680365,-500.0,0.00029315,7]
[345608157,1734378680375,-500.0,0.00029315,7]
[345608158,1734378680386,-547.00944069,0.00029315,7]
[345608159,1734378680395,-500.0,0.00029315,7]
[345608160,1734378680405,-500.0,0.00029315,7]
[345608161,1734378680415,-500.0,0.00029315,7]
[345608162,1734378680424,-500.0,0.00029315,7]
[345608163,1734378680434,-500.0,0.00029315,7]
[345608164,1734378680445,-500.0,0.00029315,7]
[345608165,1734378680455,-500.0,0.00029315,7]
[345608166,1734378680465,-1284.31,0.00029315,7]
[345608167,1734378680475,-500.0,0.00029315,7]
[345608168,1734378680485,-500.0,0.00029315,7]
[345608169,1734378680495,-500.0,0.00029315,7]
[345608170,1734378680504,-1055.83,0.00029315,7]
[345608171,1734378680514,-500.0,0.00029315,7]
[345608172,1734378680524,-500.0,0.00029315,7]
[345608173,1734378680534,-607.21,0.00029315,7]
[345608174,1734378680543,-500.0,0.00029315,7]
[345608175,1734378680554,-514.1989873,0.00029315,7]
[345608176,1734378680564,-1776.96,0.00029315,7]
[345608177,1734378680574,-767.75,0.00029315,7]
[345608178,1734378680584,-518.69846868,0.00029315,7]
[345608179,1734378680596,-168.0,0.00029315,7]
[345608180,1734378680606,-500.0,0.00029315,7]
[345608181,1734378680616,-1488.28,0.00029315,7]
[345608182,1734378680625,-500.83695313,0.00029315,7]
[345608183,1734378680636,-500.0,0.00029315,7]
[345608184,1734378680645,-777.35,0.00029315,7]
[345608185,1734378680655,-500.0,0.00029315,7]
[345608186,1734378680665,-2178.24,0.00029315,7]
[345608187,1734378680675,-1855.71,0.00029315,2]
[345608188,1734378680685,-500.0,0.00029315,7]
[345608189,1734378680695,-500.0,0.00029315,7]
[345608190,1734378680705,-500.0,0.00029315,7]
[345608191,1734378680715,-560.05,0.00029315,7]
[345608192,1734378680724,-500.0,0.00029315,2]
[345608193,1734378680734,-500.0,0.00029315,7]
[345608194,1734378680744,-578.89,0.00029315,7]
[345608195,1734378680754,-500.0,0.00029315,7]
[345608196,1734378680764,-500.0,0.00029315,7]
[345608197,1734378680774,-500.0,0.00029315,7]
[345608198,1734378680783,-570.95,0.00029315,7]
[345608199,1734378680793,-1146.06,0.00029315,7]
[345608200,1734378680803,-811.7,0.00029315,7]
[345608201,1734378680812,-500.0,0.00029315,7]
[345608202,1734378680822,-500.0,0.00029315,7]
[345608203,1734378680832,-500.0,0.00029315,7]
[345608204,1734378680844,-500.0,0.00029315,7]
[345608205,1734378680853,-500.0,0.00029315,7]
[345608206,1734378680863,-2592.99,0.00029315,7]
[345608207,1734378680873,-151.0,0.00029315,7]
[345608208,1734378680882,-203.55981216,0.00029315,7]
[345608209,1734378680893,-472.46670679,0.00029315,7]
[345608210,1734378680903,-500.0,0.00029315,7]
[345608211,1734378680913,-500.0,0.00029315,7]
[345608212,1734378680928,-500.0,0.00029315,7]
[345608213,1734378680946,-500.0,0.00029315,7]
[345608214,1734378680956,-2180.29,0.00029315,7]
[345608215,1734378680966,-534.76,0.00029315,7]
[345608216,1734378680979,-516.79,0.00029315,7]
[345608217,1734378680989,-500.0,0.00029315,7]
[345608218,1734378680998,-1000.0,0.00029315,2]
[345608219,1734378681011,-2573.99,0.00029315,7]
[345608220,1734378681022,-500.0,0.00029315,7]
[345608221,1734378681032,-3174.4,0.00029315,7]
[345608222,1734378681042,-423.50745413,0.00029315,7]
[345608223,1734378681053,-500.0,0.00029315,2]
[345608224,1734378681063,-576.51,0.00029315,7]
[345608225,1734378681073,-500.0,0.00029315,7]
[345608226,1734378681084,-2345.15,0.00029315,7]
[345608227,1734378681098,-578.76,0.00029315,7]
[345608228,1734378681108,-877.05,0.00029315,7]
[345608229,1734378681119,-500.0,0.00029315,7]
[345608230,1734378681129,-2205.48,0.00029315,7]
[345608231,1734378681139,-1402.79,0.00029315,7]
[345608232,1734378681148,-543.93,0.00029315,7]
[345608233,1734378681158,-1330.53,0.00029315,7]
[345608234,1734378681169,-500.0,0.00029315,2]
[345608235,1734378681178,-500.0,0.00029315,7]
[345608236,1734378681189,-1294.406055,0.00029315,7]
[345608237,1734378681199,-500.0,0.00029315,7]
[345608238,1734378681210,-5085.84,0.00029315,7]
[345608239,1734378681221,-500.0,0.00029315,7]
[345608240,1734378681232,-1294.406055,0.00029315,7]
[345608241,1734378681242,-500.0,0.00029315,7]
[345608242,1734378681254,-777.74,0.00029315,7]
[345608243,1734378681265,-773.31,0.00029315,7]
[345608244,1734378681276,-500.0,0.00029315,7]
[345608245,1734378681287,-500.0,0.00029315,7]
[345608246,1734378681298,-500.0,0.00029315,7]
[345608247,1734378681309,-500.0,0.00029315,7]
[345608248,1734378681321,-9195.94,0.00029315,7]
[345608249,1734378681331,-500.0,0.00029315,7]
[345608250,1734378681350,-500.0,0.00029315,7]
[345608251,1734378681363,-500.0,0.00029315,7]
[345608252,1734378681374,-500.0,0.00029315,7]
[345608253,1734378681385,-500.0,0.00029315,7]
[345608254,1734378681395,-500.0,0.00029315,7]
[345608255,1734378681406,-500.0,0.00029315,7]
[345608256,1734378681417,-7158.8,0.00029315,7]
[345608257,1734378681427,-500.0,0.00029315,7]
[345608258,1734378681437,-500.0,0.00029315,7]
[345608259,1734378681447,-500.0,0.00029315,7]
[345608260,1734378681458,-512.17384202,0.00029315,7]
[345608261,1734378681468,-500.0,0.00029315,7]
[345608262,1734378681478,-500.0,0.00029315,7]
[345608263,1734378681488,-500.0,0.00029315,7]
[345608264,1734378681498,-500.0,0.00029315,7]
[345608265,1734378681509,-500.0,0.00029315,7]
[345608266,1734378681518,-500.0,0.00029315,7]
[345608267,1734378681527,-1793.9,0.00029315,7]
[345608268,1734378681538,-592.945979,0.00029315,7]
[345608269,1734378681548,-592.945979,0.00029315,7]
[345608270,1734378681559,-616.92,0.00029315,7]
[345608271,1734378681569,-802.84,0.00029315,7]
[345608272,1734378681579,-1507.94,0.00029315,7]
[345608273,1734378681592,-1682.8,0.00029315,7]
[345608274,1734378681602,-500.0,0.00029315,7]
[345608275,1734378681612,-9729.37,0.00029315,7]
[345608276,1734378681622,-1060.98,0.00029315,7]
[345608277,1734378681633,-14925.36,0.00029315,7]
[345608278,1734378681643,-250.1951433,0.00029315,7]
[345608279,1734378681653,-452.55810022,0.00029315,7]
[345608280,1734378681663,-500.0,0.00029315,7]
[345608281,1734378681673,-500.0,0.00029315,7]
[345608282,1734378681683,-500.0,0.00029315,7]
[345608283,1734378681693,-2344.08,0.00029315,7]
[345608284,1734378681702,-500.0,0.00029315,7]
[345608285,1734378681713,-1661.08,0.00029315,7]
[345608286,1734378681724,-500.0,0.00029315,7]
[345608287,1734378681734,-500.0,0.00029315,7]
[345608288,1734378681744,-595.17,0.00029315,7]
[345608289,1734378681754,-500.0,0.00029315,7]
[345608290,1734378681764,-3399.59,0.00029315,5]
[345608291,1734378681774,-527.23,0.00029315,7]
[345608292,1734378681784,-566.2,0.00029315,7]
[345608293,1734378681794,-4636.3,0.00029315,7]
[345608294,1734378681806,-460.05178021,0.00029315,7]
[345608295,1734378681817,-45939.37,0.00029315,7]
[345608296,1734378681827,-500.0,0.00029315,7]
[345608297,1734378681839,-500.0,0.00029315,7]
[345608298,1734378681849,-2498.22,0.00029315,7]